{"text_format":"2","workbook":"xlsx","n_sheets":1,"sheets":["Sheet1"],"not_rendered":{"charts":0,"images":1,"macros":0,"external_links":0,"defined_names":0,"comments":0,"pivot_tables":0},"unopened":[],"bounds":{"document_bytes":16777216,"sheet_cells":100000,"run_cost":"one","rows_first":2000,"rows_last":500,"rows_between":2000,"halvings":0,"cell_chars":16384,"cell_head_chars":4096},"cells_cut":0,"cells_raw":0,"read":"whole","date_system":"1900"}

{"sheet":"Sheet1","index":0,"n_rows":63,"n_cols":10,"rows_kept":63,"cut":false,"hidden":false,"merged":[[8,1,8,2],[61,0,61,2],[4,1,4,2],[6,1,6,2],[1,0,1,9],[2,0,2,9],[4,5,4,9],[6,5,6,9],[8,5,8,9],[16,7,16,9]]}
[]
["Delivery List"]
["供  应 商 送 货 清 单"]
["Customer",null,null,null,"Supplier "]
["客户名称：","{{CustomerName}}",null,null,"供应商：","上海上垫垫圈有限公司"]
["Date",null,null,null,"Contact Window "]
["送货日期：","{{Ex1}}",null,null,"联络人","李海琼"]
["Box Qty",null,null,null,"Phone"]
["总箱数：",null,null,null,"电话号码","021-57317385-8004  13501694051"]
["备注"]
["* 供应商送货单随货一式两份，收货员签字后由送货人带回一份"]
["* 收货联系人：饶宏伟   18806832680",null,null,null,"紧急联系人：舒永志  18601619466 "]
["* 收货地址：浙江省嘉兴市海盐县（西塘桥街道）外塘路588号"]
["* 仓库联系邮箱：yongzhi.shu@wuerth.cn"]
["* 送货单置于箱外袋内或由送货员另行提供，最小包装数和生产批次号必须填写，不同批次号必须分行填写，一个批次一行。（黄色蓝色为必填项）"]
[]
["PO NO","Item","Description","Batch No","Packed Qty","MPQ","Carton or pallet No.","remarks"]
["订单号","零件号","物料描述","生产批次号","本次送货数","最小包装数","箱号或托号","每箱数量","箱数","零头"]
["{{send.StockNo}}","{{send.PartNo}}","{{send.Model}},{{send.ProductName}},{{send.SurfaceColor}},{{send.Rigidity}}","{{send.ProductBatchNum}}","{{send.SendQuantity}}",null,null,"{{send.QuantityPerPack}}","{{send.PackageCount}}","{{send.Sysl}}"]
[{"$nulls":4},{"$f":"H20*I20+J20","v":0}]
[{"$nulls":4},0]
[{"$nulls":4},0]
[{"$nulls":4},0]
[{"$nulls":4},0]
[{"$nulls":4},0]
[{"$nulls":4},0]
[{"$nulls":4},0]
[{"$nulls":4},0]
[{"$nulls":4},0]
[{"$nulls":4},0]
[{"$nulls":4},0]
[{"$nulls":4},0]
[{"$nulls":4},0]
[{"$nulls":4},0]
[{"$nulls":4},0]
[{"$nulls":4},0]
[{"$nulls":4},0]
[{"$nulls":4},0]
[{"$nulls":4},0]
[{"$nulls":4},0]
[{"$nulls":4},0]
[{"$nulls":4},0]
[{"$nulls":4},0]
[{"$nulls":4},0]
[{"$nulls":4},0]
[{"$nulls":4},0]
[{"$nulls":4},0]
[{"$nulls":4},0]
[{"$nulls":4},0]
[{"$nulls":4},0]
[{"$nulls":4},0]
[{"$nulls":4},0]
[{"$nulls":4},0]
[{"$nulls":4},0]
[{"$nulls":4},0]
[{"$nulls":4},0]
[{"$nulls":4},0]
[{"$nulls":4},0]
["Issue By",null,"Deliveryman",null,"received By "]
["核发人：",null,"送货人：",null,"签收人："]
[]
["（BU00）伍尔特（浙江）贸易有限公司"]
["(BR00)  艾维尼尔森工业紧固件（上海）有限公司浙江分公司"]